[Event "Titled Tuesday Blitz August 16 Early 2022"]
[White "D`Arruda, Ricardo D."]
[Black "Khabinets, Ivan"]
[WhiteFideId "100692"]
[BlackFideId "14115980"]
[WhiteElo "2271"]
[BlackElo "1980"]
[Result "1-0"]
[Round "08"]
[TimeControl "180+2"]
[Date "2022.08.18"]
[WhiteClock "0:00:00"]
[BlackClock "0:00:00"]

1. d4 {[%clk 0:00:00]}  Nf6 {[%clk 0:00:00]} 2. Nf3 {[%clk 0:00:00]}  e6 {[%clk 0:00:00]} 3. g3 {[%clk 0:00:00]}  d5 {[%clk 0:00:00]} 4. Bg2 {[%clk 0:00:00]}  c5 {[%clk 0:00:00]} 5. O-O {[%clk 0:00:00]}  cxd4 {[%clk 0:00:00]} 6. Nxd4 {[%clk 0:00:00]}  Nc6 {[%clk 0:00:00]} 7. c4 {[%clk 0:00:00]}  Bc5 {[%clk 0:00:00]} 8. Nb3 {[%clk 0:00:00]}  Be7 {[%clk 0:00:00]} 9. cxd5 {[%clk 0:00:00]}  exd5 {[%clk 0:00:00]} 10. Nc3 {[%clk 0:00:00]}  Be6 {[%clk 0:00:00]} 11. Bg5 {[%clk 0:00:00]}  d4 {[%clk 0:00:00]} 12. Bxf6 {[%clk 0:00:00]}  Bxf6 {[%clk 0:00:00]} 13. Ne4 {[%clk 0:00:00]}  Be7 {[%clk 0:00:00]} 14. Nec5 {[%clk 0:00:00]}  Bxb3 {[%clk 0:00:00]} 15. Nxb3 {[%clk 0:00:00]}  O-O {[%clk 0:00:00]} 16. Bxc6 {[%clk 0:00:00]}  bxc6 {[%clk 0:00:00]} 17. Qxd4 {[%clk 0:00:00]}  Qxd4 {[%clk 0:00:00]} 18. Nxd4 {[%clk 0:00:00]}  Bf6 {[%clk 0:00:00]} 19. Nxc6 {[%clk 0:00:00]}  Rfe8 {[%clk 0:00:00]} 20. e3 {[%clk 0:00:00]}  Bxb2 {[%clk 0:00:00]} 21. Rab1 {[%clk 0:00:00]}  Bf6 {[%clk 0:00:00]} 22. Rfc1 {[%clk 0:00:00]}  Rac8 {[%clk 0:00:00]} 23. Kf1 {[%clk 0:00:00]}  Kf8 {[%clk 0:00:00]} 24. Ke2 {[%clk 0:00:00]}  Re6 {[%clk 0:00:00]} 25. Nd4 {[%clk 0:00:00]}  Ree8 {[%clk 0:00:00]} 26. Kd3 {[%clk 0:00:00]}  Rxc1 {[%clk 0:00:00]} 27. Rxc1 {[%clk 0:00:00]}  Rb8 {[%clk 0:00:00]} 28. Nb3 {[%clk 0:00:00]}  Rb4 {[%clk 0:00:00]} 29. Rc4 {[%clk 0:00:00]}  Rb6 {[%clk 0:00:00]} 30. Rc8+ {[%clk 0:00:00]}  Ke7 {[%clk 0:00:00]} 31. Rc7+ {[%clk 0:00:00]}  Ke6 {[%clk 0:00:00]} 32. Rxa7 {[%clk 0:00:00]}  Rd6+ {[%clk 0:00:00]} 33. Nd4+ {[%clk 0:00:00]}  Kd5 {[%clk 0:00:00]} 34. Ra5# {[%clk 0:00:00]} 1-0


[Site "https://www.chess.com"]

[Event "Titled Tuesday Blitz August 16 Early 2022"]
[White "Djokic, Mihailo"]
[Black "Terry, Renato"]
[WhiteFideId "976440"]
[BlackFideId "3803457"]
[WhiteElo "2246"]
[BlackElo "2577"]
[Result "0-1"]
[Round "08"]
[TimeControl "180+1"]
[Date "2022.08.16"]
[WhiteClock "0:00:02"]
[BlackClock "0:00:31"]

1. e4 {[%clk 0:03:00]}  e6 {[%clk 0:03:00]} 2. d4 {[%clk 0:03:00]}  d5 {[%clk 0:03:00]} 3. Nc3 {[%clk 0:03:00]}  Nf6 {[%clk 0:03:00]} 4. Bg5 {[%clk 0:02:59]}  Bb4 {[%clk 0:03:00]} 5. e5 {[%clk 0:02:59]}  h6 {[%clk 0:03:00]} 6. Bh4 {[%clk 0:02:59]}  g5 {[%clk 0:03:00]} 7. Bg3 {[%clk 0:02:59]}  Ne4 {[%clk 0:03:00]} 8. Ne2 {[%clk 0:03:00]}  h5 {[%clk 0:03:00]} 9. f3 {[%clk 0:02:59]}  Nxg3 {[%clk 0:03:00]} 10. hxg3 {[%clk 0:02:58]}  Bf8 {[%clk 0:02:44]} 11. g4 {[%clk 0:02:55]}  h4 {[%clk 0:02:44]} 12. Ng3 {[%clk 0:02:55]}  c5 {[%clk 0:02:36]} 13. Nh5 {[%clk 0:02:52]}  Nd7 {[%clk 0:02:32]} 14. Bb5 {[%clk 0:02:49]}  Be7 {[%clk 0:02:32]} 15. f4 {[%clk 0:02:33]}  gxf4 {[%clk 0:02:29]} 16. dxc5 {[%clk 0:02:17]}  Qc7 {[%clk 0:02:18]} 17. Qd4 {[%clk 0:02:12]}  a6 {[%clk 0:02:01]} 18. Ba4 {[%clk 0:02:08]}  Bxc5 {[%clk 0:01:30]} 19. Bxd7+ {[%clk 0:01:57]}  Bxd7 {[%clk 0:01:28]} 20. Nf6+ {[%clk 0:01:39]}  Kd8 {[%clk 0:01:09]} 21. Qxf4 {[%clk 0:01:38]}  Qb6 {[%clk 0:01:04]} 22. O-O-O {[%clk 0:01:26]}  Be3+ {[%clk 0:01:03]} 23. Qxe3 {[%clk 0:01:12]}  Qxe3+ {[%clk 0:01:03]} 24. Kb1 {[%clk 0:01:12]}  Qxe5 {[%clk 0:01:01]} 25. Nh5 {[%clk 0:01:05]}  Rxh5 {[%clk 0:00:54]} 26. gxh5 {[%clk 0:01:04]}  Qxh5 {[%clk 0:00:55]} 27. Rd4 {[%clk 0:01:03]}  Qg5 {[%clk 0:00:50]} 28. a3 {[%clk 0:00:58]}  Kc7 {[%clk 0:00:47]} 29. Rhxh4 {[%clk 0:00:53]}  Qxg2 {[%clk 0:00:47]} 30. Rhg4 {[%clk 0:00:48]}  Qf1+ {[%clk 0:00:45]} 31. Rd1 {[%clk 0:00:47]}  Qf3 {[%clk 0:00:43]} 32. Rgg1 {[%clk 0:00:44]}  Rh8 {[%clk 0:00:41]} 33. Rdf1 {[%clk 0:00:44]}  Qh5 {[%clk 0:00:41]} 34. Ka2 {[%clk 0:00:40]}  d4 {[%clk 0:00:38]} 35. Nb1 {[%clk 0:00:36]}  Qd5+ {[%clk 0:00:37]} 36. b3 {[%clk 0:00:36]}  Rh2 {[%clk 0:00:37]} 37. Rc1 {[%clk 0:00:16]}  d3 {[%clk 0:00:36]} 38. Ka1 {[%clk 0:00:02]}  dxc2 {[%clk 0:00:34]} 39. Nc3 {[%clk 0:00:02]}  Qxb3 {[%clk 0:00:34]} 40. Rg3 {[%clk 0:00:02]}  Qxa3+ {[%clk 0:00:31]} 0-1


[Site "https://www.chess.com"]

[Event "Titled Tuesday Blitz August 16 Early 2022"]
[White "Drygalov, Sergey"]
[Black "Shuvalova, Polina"]
[WhiteFideId "24171743"]
[BlackFideId "24171760"]
[WhiteElo "2523"]
[BlackElo "2330"]
[Result "0-1"]
[Round "08"]
[TimeControl "180+1"]
[Date "2022.08.16"]
[WhiteClock "0:00:04"]
[BlackClock "0:00:53"]

1. d4 {[%clk 0:02:37]}  Nf6 {[%clk 0:02:59]} 2. c4 {[%clk 0:02:37]}  e6 {[%clk 0:02:59]} 3. Nc3 {[%clk 0:02:38]}  d5 {[%clk 0:02:56]} 4. cxd5 {[%clk 0:02:36]}  Nxd5 {[%clk 0:02:57]} 5. e4 {[%clk 0:02:31]}  Nxc3 {[%clk 0:02:57]} 6. bxc3 {[%clk 0:02:32]}  c5 {[%clk 0:02:58]} 7. Rb1 {[%clk 0:02:32]}  Be7 {[%clk 0:02:47]} 8. Nf3 {[%clk 0:02:31]}  O-O {[%clk 0:02:47]} 9. Bd3 {[%clk 0:02:21]}  cxd4 {[%clk 0:02:43]} 10. cxd4 {[%clk 0:02:20]}  Nc6 {[%clk 0:02:42]} 11. Bb2 {[%clk 0:02:19]}  Qa5+ {[%clk 0:02:36]} 12. Nd2 {[%clk 0:02:04]}  Rd8 {[%clk 0:02:28]} 13. O-O {[%clk 0:02:03]}  Qxa2 {[%clk 0:01:47]} 14. Bc4 {[%clk 0:01:58]}  Qa5 {[%clk 0:01:45]} 15. d5 {[%clk 0:01:58]}  exd5 {[%clk 0:01:36]} 16. exd5 {[%clk 0:01:57]}  Bf5 {[%clk 0:01:30]} 17. Ra1 {[%clk 0:01:45]}  Qb6 {[%clk 0:01:27]} 18. Bc3 {[%clk 0:01:09]}  Nb4 {[%clk 0:01:26]} 19. Qf3 {[%clk 0:01:07]}  Bg6 {[%clk 0:01:25]} 20. Rfe1 {[%clk 0:00:49]}  Bf6 {[%clk 0:01:20]} 21. Rac1 {[%clk 0:00:41]}  Bxc3 {[%clk 0:01:13]} 22. Rxc3 {[%clk 0:00:40]}  Rac8 {[%clk 0:01:10]} 23. h4 {[%clk 0:00:38]}  Qf6 {[%clk 0:01:06]} 24. Qg3 {[%clk 0:00:25]}  b5 {[%clk 0:01:03]} 25. Rb3 {[%clk 0:00:06]}  Nc2 {[%clk 0:00:59]} 26. Rc1 {[%clk 0:00:03]}  bxc4 {[%clk 0:00:58]} 27. Rb7 {[%clk 0:00:04]}  Nd4 {[%clk 0:00:58]} 28. Re1 {[%clk 0:00:03]}  c3 {[%clk 0:00:54]} 29. Ne4 {[%clk 0:00:03]}  Bxe4 {[%clk 0:00:54]} 30. Rxe4 {[%clk 0:00:04]}  c2 {[%clk 0:00:53]} 0-1


[Site "https://www.chess.com"]

[Event "Titled Tuesday Blitz August 16 Early 2022"]
[White "Dubov, Daniil"]
[Black "Fawzy, Adham"]
[WhiteFideId "24126055"]
[BlackFideId "10613129"]
[WhiteElo "2791"]
[BlackElo "2541"]
[Result "0-1"]
[Round "08"]
[TimeControl "180+1"]
[Date "2022.08.16"]
[WhiteClock "0:00:34"]
[BlackClock "0:01:21"]

1. e4 {[%clk 0:03:00]}  c5 {[%clk 0:02:54]} 2. Nf3 {[%clk 0:03:00]}  Nc6 {[%clk 0:02:54]} 3. Bb5 {[%clk 0:03:00]}  g6 {[%clk 0:02:54]} 4. O-O {[%clk 0:03:00]}  Bg7 {[%clk 0:02:54]} 5. c3 {[%clk 0:02:59]}  e5 {[%clk 0:02:54]} 6. d4 {[%clk 0:02:58]}  exd4 {[%clk 0:02:54]} 7. cxd4 {[%clk 0:02:58]}  cxd4 {[%clk 0:02:55]} 8. Bf4 {[%clk 0:02:58]}  a6 {[%clk 0:02:55]} 9. Bc4 {[%clk 0:02:57]}  d6 {[%clk 0:02:55]} 10. Nbd2 {[%clk 0:02:50]}  Nf6 {[%clk 0:02:42]} 11. Re1 {[%clk 0:02:35]}  O-O {[%clk 0:02:40]} 12. Rc1 {[%clk 0:02:34]}  h6 {[%clk 0:02:34]} 13. h3 {[%clk 0:02:33]}  Be6 {[%clk 0:02:26]} 14. Qb3 {[%clk 0:02:13]}  d5 {[%clk 0:02:10]} 15. exd5 {[%clk 0:02:11]}  Nxd5 {[%clk 0:02:11]} 16. Bxd5 {[%clk 0:01:52]}  Bxd5 {[%clk 0:01:59]} 17. Qxb7 {[%clk 0:01:52]}  Ne5 {[%clk 0:02:00]} 18. Qc7 {[%clk 0:01:50]}  Nd3 {[%clk 0:01:59]} 19. Qxd8 {[%clk 0:01:21]}  Rfxd8 {[%clk 0:01:59]} 20. Be5 {[%clk 0:01:22]}  Nxe1 {[%clk 0:01:50]} 21. Rxe1 {[%clk 0:01:21]}  Bxf3 {[%clk 0:01:51]} 22. Bxg7 {[%clk 0:01:16]}  Kxg7 {[%clk 0:01:51]} 23. Nxf3 {[%clk 0:01:17]}  Rac8 {[%clk 0:01:46]} 24. Rd1 {[%clk 0:01:14]}  d3 {[%clk 0:01:43]} 25. b3 {[%clk 0:00:38]}  d2 {[%clk 0:01:38]} 26. Kf1 {[%clk 0:00:36]}  Rc2 {[%clk 0:01:22]} 27. a4 {[%clk 0:00:34]}  Rb2 {[%clk 0:01:22]} 28. Ke2 {[%clk 0:00:34]}  Rxb3 {[%clk 0:01:21]} 0-1


[Site "https://www.chess.com"]

[Event "Titled Tuesday Blitz August 16 Early 2022"]
[White "Estrada Nieto, Julian"]
[Black "Sailer, Mike"]
[WhiteFideId "5101018"]
[BlackFideId "2012901"]
[WhiteElo "2252"]
[BlackElo "2109"]
[Result "1/2-1/2"]
[Round "08"]
[TimeControl "180+2"]
[Date "2022.08.18"]
[WhiteClock "0:00:00"]
[BlackClock "0:00:00"]

1. e4 {[%clk 0:00:00]}  d5 {[%clk 0:00:00]} 2. exd5 {[%clk 0:00:00]}  Qxd5 {[%clk 0:00:00]} 3. Nc3 {[%clk 0:00:00]}  Qd6 {[%clk 0:00:00]} 4. d4 {[%clk 0:00:00]}  Nf6 {[%clk 0:00:00]} 5. Nf3 {[%clk 0:00:00]}  c6 {[%clk 0:00:00]} 6. Ne5 {[%clk 0:00:00]}  Nbd7 {[%clk 0:00:00]} 7. Bf4 {[%clk 0:00:00]}  Nxe5 {[%clk 0:00:00]} 8. Bxe5 {[%clk 0:00:00]}  Qb4 {[%clk 0:00:00]} 9. a3 {[%clk 0:00:00]}  Qa5 {[%clk 0:00:00]} 10. Bd3 {[%clk 0:00:00]}  Bg4 {[%clk 0:00:00]} 11. Qd2 {[%clk 0:00:00]}  e6 {[%clk 0:00:00]} 12. Qg5 {[%clk 0:00:00]}  h6 {[%clk 0:00:00]} 13. Qf4 {[%clk 0:00:00]}  Bh5 {[%clk 0:00:00]} 14. Bc7 {[%clk 0:00:00]}  Nd5 {[%clk 0:00:00]} 15. Qe5 {[%clk 0:00:00]}  Qxc7 {[%clk 0:00:00]} 16. Qxh5 {[%clk 0:00:00]}  Nxc3 {[%clk 0:00:00]} 17. bxc3 {[%clk 0:00:00]}  Qf4 {[%clk 0:00:00]} 18. g3 {[%clk 0:00:00]}  Qg5 {[%clk 0:00:00]} 19. Qf3 {[%clk 0:00:00]}  Bd6 {[%clk 0:00:00]} 20. O-O {[%clk 0:00:00]}  O-O {[%clk 0:00:00]} 21. Rab1 {[%clk 0:00:00]}  Rab8 {[%clk 0:00:00]} 22. Rfe1 {[%clk 0:00:00]}  Bxa3 {[%clk 0:00:00]} 23. Re5 {[%clk 0:00:00]}  Qe7 {[%clk 0:00:00]} 24. Qe4 {[%clk 0:00:00]}  g6 {[%clk 0:00:00]} 25. Qe3 {[%clk 0:00:00]}  Kg7 {[%clk 0:00:00]} 26. Ra5 {[%clk 0:00:00]}  a6 {[%clk 0:00:00]} 27. c4 {[%clk 0:00:00]}  Bd6 {[%clk 0:00:00]} 28. c5 {[%clk 0:00:00]}  Bc7 {[%clk 0:00:00]} 29. Ra4 {[%clk 0:00:00]}  Qg5 {[%clk 0:00:00]} 30. f4 {[%clk 0:00:00]}  Qg4 {[%clk 0:00:00]} 31. Rab4 {[%clk 0:00:00]}  h5 {[%clk 0:00:00]} 32. Rxb7 {[%clk 0:00:00]}  h4 {[%clk 0:00:00]} 33. Be2 {[%clk 0:00:00]}  Qf5 {[%clk 0:00:00]} 34. Bd3 {[%clk 0:00:00]}  Qg4 {[%clk 0:00:00]} 35. Be2 {[%clk 0:00:00]}  Qf5 {[%clk 0:00:00]} 36. Bd3 {[%clk 0:00:00]}  Qg4 {[%clk 0:00:00]} 1/2-1/2


[Site "https://www.chess.com"]

[Event "Titled Tuesday Blitz August 16 Early 2022"]
[White "Fernandez Hernandez, Gerardo"]
[Black "Tapia Ostolaza, Alexei"]
[WhiteFideId "2207400"]
[BlackFideId "6600581"]
[WhiteElo "2169"]
[BlackElo "2104"]
[Result "1-0"]
[Round "08"]
[TimeControl "180+2"]
[Date "2022.08.18"]
[WhiteClock "0:00:00"]
[BlackClock "0:00:00"]

1. e4 {[%clk 0:00:00]}  c5 {[%clk 0:00:00]} 2. d3 {[%clk 0:00:00]}  Nc6 {[%clk 0:00:00]} 3. g3 {[%clk 0:00:00]}  g6 {[%clk 0:00:00]} 4. Bg2 {[%clk 0:00:00]}  Bg7 {[%clk 0:00:00]} 5. f4 {[%clk 0:00:00]}  e6 {[%clk 0:00:00]} 6. Nf3 {[%clk 0:00:00]}  Nge7 {[%clk 0:00:00]} 7. O-O {[%clk 0:00:00]}  d5 {[%clk 0:00:00]} 8. c3 {[%clk 0:00:00]}  d4 {[%clk 0:00:00]} 9. c4 {[%clk 0:00:00]}  e5 {[%clk 0:00:00]} 10. f5 {[%clk 0:00:00]}  f6 {[%clk 0:00:00]} 11. fxg6 {[%clk 0:00:00]}  hxg6 {[%clk 0:00:00]} 12. Nh4 {[%clk 0:00:00]}  Be6 {[%clk 0:00:00]} 13. Na3 {[%clk 0:00:00]}  a6 {[%clk 0:00:00]} 14. Nc2 {[%clk 0:00:00]}  Qd7 {[%clk 0:00:00]} 15. a3 {[%clk 0:00:00]}  a5 {[%clk 0:00:00]} 16. Bd2 {[%clk 0:00:00]}  a4 {[%clk 0:00:00]} 17. Rb1 {[%clk 0:00:00]}  g5 {[%clk 0:00:00]} 18. Nf3 {[%clk 0:00:00]}  Bh3 {[%clk 0:00:00]} 19. b4 {[%clk 0:00:00]}  Bxg2 {[%clk 0:00:00]} 20. Kxg2 {[%clk 0:00:00]}  Qh3+ {[%clk 0:00:00]} 21. Kg1 {[%clk 0:00:00]}  Ng6 {[%clk 0:00:00]} 22. Qe2 {[%clk 0:00:00]}  cxb4 {[%clk 0:00:00]} 23. Nxb4 {[%clk 0:00:00]}  O-O {[%clk 0:00:00]} 24. Nd5 {[%clk 0:00:00]}  Rf7 {[%clk 0:00:00]} 25. Rfc1 {[%clk 0:00:00]}  Nf8 {[%clk 0:00:00]} 26. Bxg5 {[%clk 0:00:00]}  fxg5 {[%clk 0:00:00]} 27. Nxg5 {[%clk 0:00:00]}  Qd7 {[%clk 0:00:00]} 28. Nxf7 {[%clk 0:00:00]}  Qxf7 {[%clk 0:00:00]} 29. Rf1 {[%clk 0:00:00]}  Qd7 {[%clk 0:00:00]} 30. Nb6 {[%clk 0:00:00]}  Qd8 {[%clk 0:00:00]} 31. Qg4 {[%clk 0:00:00]}  Ra6 {[%clk 0:00:00]} 32. Nd5 {[%clk 0:00:00]}  Na5 {[%clk 0:00:00]} 33. Rb5 {[%clk 0:00:00]}  Nb3 {[%clk 0:00:00]} 34. Rxb7 {[%clk 0:00:00]}  Rg6 {[%clk 0:00:00]} 35. Rxf8+ {[%clk 0:00:00]}  Qxf8 {[%clk 0:00:00]} 36. Qxg6 {[%clk 0:00:00]}  Nc1 {[%clk 0:00:00]} 37. Ne7+ {[%clk 0:00:00]}  Kh8 {[%clk 0:00:00]} 38. Qh5+ {[%clk 0:00:00]} 1-0


[Site "https://www.chess.com"]

[Event "Titled Tuesday Blitz August 16 Early 2022"]
[White "Gabdrakhmanov, Azat"]
[Black "Leschinsky, Gary"]
[WhiteFideId "34189197"]
[BlackFideId "30951321"]
[WhiteElo "2293"]
[BlackElo "1809"]
[Result "1/2-1/2"]
[Round "08"]
[TimeControl "180+1"]
[Date "2022.08.16"]
[WhiteClock "0:00:07"]
[BlackClock "0:00:03"]

1. e4 {[%clk 0:03:00]}  c5 {[%clk 0:02:55]} 2. Nf3 {[%clk 0:03:00]}  e6 {[%clk 0:02:55]} 3. d4 {[%clk 0:03:00]}  cxd4 {[%clk 0:02:56]} 4. Nxd4 {[%clk 0:03:01]}  Nc6 {[%clk 0:02:56]} 5. Nc3 {[%clk 0:03:00]}  Qc7 {[%clk 0:02:56]} 6. Be3 {[%clk 0:03:00]}  Nf6 {[%clk 0:02:42]} 7. f3 {[%clk 0:03:00]}  a6 {[%clk 0:02:41]} 8. Qd2 {[%clk 0:03:00]}  Be7 {[%clk 0:02:32]} 9. g4 {[%clk 0:03:00]}  O-O {[%clk 0:02:28]} 10. h4 {[%clk 0:02:55]}  b5 {[%clk 0:02:07]} 11. h5 {[%clk 0:02:53]}  b4 {[%clk 0:02:00]} 12. Nce2 {[%clk 0:02:41]}  d5 {[%clk 0:01:56]} 13. g5 {[%clk 0:02:35]}  Nd7 {[%clk 0:01:52]} 14. exd5 {[%clk 0:02:33]}  exd5 {[%clk 0:01:50]} 15. g6 {[%clk 0:02:24]}  Nde5 {[%clk 0:01:46]} 16. b3 {[%clk 0:02:11]}  Bc5 {[%clk 0:01:38]} 17. O-O-O {[%clk 0:02:00]}  Re8 {[%clk 0:01:19]} 18. gxh7+ {[%clk 0:01:57]}  Kh8 {[%clk 0:01:16]} 19. Bf4 {[%clk 0:01:46]}  Nxd4 {[%clk 0:01:11]} 20. Nxd4 {[%clk 0:01:45]}  Bd7 {[%clk 0:00:49]} 21. Kb1 {[%clk 0:01:30]}  a5 {[%clk 0:00:47]} 22. Rg1 {[%clk 0:01:06]}  a4 {[%clk 0:00:45]} 23. Bh6 {[%clk 0:01:06]}  Bf8 {[%clk 0:00:29]} 24. Qg5 {[%clk 0:00:44]}  Ng6 {[%clk 0:00:23]} 25. hxg6 {[%clk 0:00:32]}  Re5 {[%clk 0:00:23]} 26. Qf4 {[%clk 0:00:25]}  gxh6 {[%clk 0:00:21]} 27. g7+ {[%clk 0:00:20]}  Bxg7 {[%clk 0:00:21]} 28. Qxf7 {[%clk 0:00:19]}  Rg5 {[%clk 0:00:21]} 29. Rxg5 {[%clk 0:00:18]}  hxg5 {[%clk 0:00:22]} 30. Ne6 {[%clk 0:00:13]}  Qe5 {[%clk 0:00:22]} 31. Nxg7 {[%clk 0:00:11]}  Qxg7 {[%clk 0:00:23]} 32. Qxg7+ {[%clk 0:00:11]}  Kxg7 {[%clk 0:00:24]} 33. Rxd5 {[%clk 0:00:11]}  Be6 {[%clk 0:00:23]} 34. Rxg5+ {[%clk 0:00:11]}  Kxh7 {[%clk 0:00:24]} 35. bxa4 {[%clk 0:00:11]}  Rxa4 {[%clk 0:00:23]} 36. Bd3+ {[%clk 0:00:11]}  Kh8 {[%clk 0:00:22]} 37. Rb5 {[%clk 0:00:10]}  Bxa2+ {[%clk 0:00:21]} 38. Kb2 {[%clk 0:00:11]}  Be6 {[%clk 0:00:21]} 39. Rb7 {[%clk 0:00:11]}  Bd5 {[%clk 0:00:20]} 40. Rb8+ {[%clk 0:00:10]}  Kg7 {[%clk 0:00:20]} 41. f4 {[%clk 0:00:10]}  b3 {[%clk 0:00:18]} 42. Rd8 {[%clk 0:00:06]}  Bf7 {[%clk 0:00:15]} 43. cxb3 {[%clk 0:00:04]}  Rxf4 {[%clk 0:00:15]} 44. Rd7 {[%clk 0:00:05]}  Kf6 {[%clk 0:00:15]} 45. Kc3 {[%clk 0:00:06]}  Rf3 {[%clk 0:00:14]} 46. Kc2 {[%clk 0:00:05]}  Be6 {[%clk 0:00:13]} 47. Rd4 {[%clk 0:00:05]}  Ke5 {[%clk 0:00:11]} 48. Re4+ {[%clk 0:00:05]}  Kd6 {[%clk 0:00:12]} 49. Re2 {[%clk 0:00:06]}  Bxb3+ {[%clk 0:00:10]} 50. Kc3 {[%clk 0:00:05]}  Bd5 {[%clk 0:00:10]} 51. Kd4 {[%clk 0:00:05]}  Rf4+ {[%clk 0:00:10]} 52. Ke3 {[%clk 0:00:05]}  Rb4 {[%clk 0:00:10]} 53. Rc2 {[%clk 0:00:06]}  Rb3 {[%clk 0:00:09]} 54. Kd4 {[%clk 0:00:05]}  Rb4+ {[%clk 0:00:09]} 55. Kc3 {[%clk 0:00:06]}  Rb6 {[%clk 0:00:09]} 56. Kd2 {[%clk 0:00:06]}  Rc6 {[%clk 0:00:09]} 57. Rb2 {[%clk 0:00:06]}  Kc5 {[%clk 0:00:08]} 58. Rc2+ {[%clk 0:00:06]}  Kd6 {[%clk 0:00:08]} 59. Rb2 {[%clk 0:00:07]}  Kc5 {[%clk 0:00:09]} 60. Rb8 {[%clk 0:00:07]}  Kd6 {[%clk 0:00:09]} 61. Rh8 {[%clk 0:00:08]}  Rc7 {[%clk 0:00:07]} 62. Rh5 {[%clk 0:00:08]}  Re7 {[%clk 0:00:06]} 63. Kc3 {[%clk 0:00:08]}  Re5 {[%clk 0:00:06]} 64. Rh6+ {[%clk 0:00:08]}  Re6 {[%clk 0:00:07]} 65. Rh7 {[%clk 0:00:08]}  Ke5 {[%clk 0:00:07]} 66. Rh5+ {[%clk 0:00:08]}  Kd6 {[%clk 0:00:07]} 67. Kd4 {[%clk 0:00:08]}  Bc6 {[%clk 0:00:08]} 68. Bc4 {[%clk 0:00:08]}  Rf6 {[%clk 0:00:07]} 69. Rg5 {[%clk 0:00:07]}  Rf4+ {[%clk 0:00:07]} 70. Kc3 {[%clk 0:00:08]}  Bd7 {[%clk 0:00:06]} 71. Bd3 {[%clk 0:00:08]}  Rh4 {[%clk 0:00:06]} 72. Rg6+ {[%clk 0:00:08]}  Kc5 {[%clk 0:00:04]} 73. Rg7 {[%clk 0:00:09]}  Be6 {[%clk 0:00:04]} 74. Rg5+ {[%clk 0:00:09]}  Kd6 {[%clk 0:00:04]} 75. Rg6 {[%clk 0:00:09]}  Rh3 {[%clk 0:00:05]} 76. Kd4 {[%clk 0:00:09]}  Ke7 {[%clk 0:00:05]} 77. Be4 {[%clk 0:00:08]}  Rh4 {[%clk 0:00:04]} 78. Ke5 {[%clk 0:00:08]}  Bf7 {[%clk 0:00:03]} 79. Rg5 {[%clk 0:00:08]}  Rh5 {[%clk 0:00:03]} 80. Kf4 {[%clk 0:00:06]}  Rxg5 {[%clk 0:00:03]} 81. Kxg5 {[%clk 0:00:07]} 1/2-1/2


[Site "https://www.chess.com"]

[Event "Titled Tuesday Blitz August 16 Early 2022"]
[White "Goltseva, Ekaterina"]
[Black "Kosteniuk, Alexandra"]
[WhiteFideId "24173770"]
[BlackFideId "4128125"]
[WhiteElo "2086"]
[BlackElo "2469"]
[Result "0-1"]
[Round "08"]
[TimeControl "180+2"]
[Date "2022.08.18"]
[WhiteClock "0:00:00"]
[BlackClock "0:00:00"]

1. d4 {[%clk 0:00:00]}  f5 {[%clk 0:00:00]} 2. c4 {[%clk 0:00:00]}  Nf6 {[%clk 0:00:00]} 3. Nc3 {[%clk 0:00:00]}  g6 {[%clk 0:00:00]} 4. Nf3 {[%clk 0:00:00]}  Bg7 {[%clk 0:00:00]} 5. e3 {[%clk 0:00:00]}  d6 {[%clk 0:00:00]} 6. Be2 {[%clk 0:00:00]}  Nc6 {[%clk 0:00:00]} 7. Rb1 {[%clk 0:00:00]}  e5 {[%clk 0:00:00]} 8. b4 {[%clk 0:00:00]}  e4 {[%clk 0:00:00]} 9. Nd2 {[%clk 0:00:00]}  a5 {[%clk 0:00:00]} 10. b5 {[%clk 0:00:00]}  Ne7 {[%clk 0:00:00]} 11. O-O {[%clk 0:00:00]}  O-O {[%clk 0:00:00]} 12. f3 {[%clk 0:00:00]}  exf3 {[%clk 0:00:00]} 13. Bxf3 {[%clk 0:00:00]}  d5 {[%clk 0:00:00]} 14. cxd5 {[%clk 0:00:00]}  Nexd5 {[%clk 0:00:00]} 15. Nxd5 {[%clk 0:00:00]}  Nxd5 {[%clk 0:00:00]} 16. Qb3 {[%clk 0:00:00]}  c6 {[%clk 0:00:00]} 17. Nc4 {[%clk 0:00:00]}  Be6 {[%clk 0:00:00]} 18. Qd3 {[%clk 0:00:00]}  Nb4 {[%clk 0:00:00]} 19. Qe2 {[%clk 0:00:00]}  cxb5 {[%clk 0:00:00]} 20. Ne5 {[%clk 0:00:00]}  Bxe5 {[%clk 0:00:00]} 21. dxe5 {[%clk 0:00:00]}  Bc4 {[%clk 0:00:00]} 22. Qf2 {[%clk 0:00:00]}  Bxf1 {[%clk 0:00:00]} 23. Qxf1 {[%clk 0:00:00]}  Rc8 {[%clk 0:00:00]} 24. Bb2 {[%clk 0:00:00]}  Rc2 {[%clk 0:00:00]} 25. Bd4 {[%clk 0:00:00]}  Nc6 {[%clk 0:00:00]} 26. Qxb5 {[%clk 0:00:00]}  Nxd4 {[%clk 0:00:00]} 27. Qd5+ {[%clk 0:00:00]}  Kh8 {[%clk 0:00:00]} 28. exd4 {[%clk 0:00:00]}  Qc7 {[%clk 0:00:00]} 29. Rxb7 {[%clk 0:00:00]}  Rc1+ {[%clk 0:00:00]} 30. Kf2 {[%clk 0:00:00]}  Qc2+ {[%clk 0:00:00]} 31. Kg3 {[%clk 0:00:00]}  f4+ {[%clk 0:00:00]} 32. Kh3 {[%clk 0:00:00]}  Qf5+ {[%clk 0:00:00]} 33. Bg4 {[%clk 0:00:00]}  Rc3+ {[%clk 0:00:00]} 34. g3 {[%clk 0:00:00]}  Qg5 {[%clk 0:00:00]} 35. Qd7 {[%clk 0:00:00]}  Qh6+ {[%clk 0:00:00]} 36. Kg2 {[%clk 0:00:00]}  f3+ {[%clk 0:00:00]} 37. Kf2 {[%clk 0:00:00]}  Rc2+ {[%clk 0:00:00]} 38. Kf1 {[%clk 0:00:00]}  Qc1# {[%clk 0:00:00]} 0-1


[Site "https://www.chess.com"]

[Event "Titled Tuesday Blitz August 16 Early 2022"]
[White "Gubanov, Oleg"]
[Black "Ianov, Viktor"]
[WhiteFideId "14115115"]
[BlackFideId "14102730"]
[WhiteElo "2258"]
[BlackElo "2263"]
[Result "0-1"]
[Round "08"]
[TimeControl "180+2"]
[Date "2022.08.18"]
[WhiteClock "0:00:00"]
[BlackClock "0:00:00"]

1. d4 {[%clk 0:00:00]}  d6 {[%clk 0:00:00]} 2. e4 {[%clk 0:00:00]}  Nf6 {[%clk 0:00:00]} 3. Nc3 {[%clk 0:00:00]}  c6 {[%clk 0:00:00]} 4. f4 {[%clk 0:00:00]}  Qb6 {[%clk 0:00:00]} 5. Nf3 {[%clk 0:00:00]}  Bg4 {[%clk 0:00:00]} 6. Be2 {[%clk 0:00:00]}  Bxf3 {[%clk 0:00:00]} 7. Bxf3 {[%clk 0:00:00]}  e5 {[%clk 0:00:00]} 8. fxe5 {[%clk 0:00:00]}  dxe5 {[%clk 0:00:00]} 9. dxe5 {[%clk 0:00:00]}  Nfd7 {[%clk 0:00:00]} 10. e6 {[%clk 0:00:00]}  fxe6 {[%clk 0:00:00]} 11. Bd2 {[%clk 0:00:00]}  Ne5 {[%clk 0:00:00]} 12. Qe2 {[%clk 0:00:00]}  Qxb2 {[%clk 0:00:00]} 13. O-O {[%clk 0:00:00]}  Qxc2 {[%clk 0:00:00]} 14. Rab1 {[%clk 0:00:00]}  Bc5+ {[%clk 0:00:00]} 15. Kh1 {[%clk 0:00:00]}  b6 {[%clk 0:00:00]} 16. Rbc1 {[%clk 0:00:00]}  Qd3 {[%clk 0:00:00]} 17. Qe1 {[%clk 0:00:00]}  Nbd7 {[%clk 0:00:00]} 18. Na4 {[%clk 0:00:00]}  O-O {[%clk 0:00:00]} 19. Be2 {[%clk 0:00:00]}  Qxe4 {[%clk 0:00:00]} 20. Rxf8+ {[%clk 0:00:00]}  Rxf8 {[%clk 0:00:00]} 21. Nxc5 {[%clk 0:00:00]}  Nxc5 {[%clk 0:00:00]} 22. Qd1 {[%clk 0:00:00]} 0-1


[Site "https://www.chess.com"]